[Event "Early-Titled-Tuesday-Blitz-May-14-2024"]
[Site "Chess.com"]
[Date "2024.05.14"]
[Round "11"]
[White "mightysmasher"]
[Black "monomita"]
[Result "1-0"]
[WhiteElo "2589"]
[BlackElo "2739"]
[TimeControl "180+1"]
[EndTime "10:08:58 PDT"]
[Termination "mightysmasher won by resignation"]

1. e4 {[%clk 0:03:00.9]} 1... e5 {[%clk 0:03:00.9]} 2. Nf3 {[%clk 0:02:56.9]}
2... Nc6 {[%clk 0:03:01.8]} 3. d4 {[%clk 0:02:55.7]} 3... exd4 {[%clk
0:03:00.3]} 4. Nxd4 {[%clk 0:02:56.6]} 4... Nf6 {[%clk 0:03:00.3]} 5. Nc3 {[%clk
0:02:56.5]} 5... Bb4 {[%clk 0:02:59.6]} 6. Nxc6 {[%clk 0:02:56.9]} 6... bxc6
{[%clk 0:02:58.1]} 7. Bd3 {[%clk 0:02:55.3]} 7... O-O {[%clk 0:02:58.3]} 8. O-O
{[%clk 0:02:52.9]} 8... Re8 {[%clk 0:02:59.2]} 9. Bg5 {[%clk 0:02:50.9]} 9... h6
{[%clk 0:02:56]} 10. Bh4 {[%clk 0:02:46.8]} 10... d5 {[%clk 0:02:56.3]} 11. exd5
{[%clk 0:02:44.7]} 11... g5 {[%clk 0:02:56.7]} 12. Bg3 {[%clk 0:02:42.4]} 12...
cxd5 {[%clk 0:02:57.1]} 13. a3 {[%clk 0:02:39.5]} 13... Bd6 {[%clk 0:02:54.9]}
14. Bxd6 {[%clk 0:02:34.7]} 14... Qxd6 {[%clk 0:02:55.8]} 15. Qf3 {[%clk
0:02:31.4]} 15... Bg4 {[%clk 0:02:55.7]} 16. Qg3 {[%clk 0:02:30.7]} 16... Qxg3
{[%clk 0:02:56.2]} 17. hxg3 {[%clk 0:02:31]} 17... c6 {[%clk 0:02:57.1]} 18.
Rfe1 {[%clk 0:02:18.9]} 18... Nd7 {[%clk 0:02:54.8]} 19. b4 {[%clk 0:02:12.8]}
19... Ne5 {[%clk 0:02:51.2]} 20. Bf1 {[%clk 0:02:07]} 20... Nd7 {[%clk
0:02:41.4]} 21. b5 {[%clk 0:02:02.3]} 21... d4 {[%clk 0:02:41.2]} 22. Ne4 {[%clk
0:02:00.4]} 22... cxb5 {[%clk 0:02:32.9]} 23. Bxb5 {[%clk 0:01:58]} 23... Kg7
{[%clk 0:02:33.4]} 24. f3 {[%clk 0:01:42.8]} 24... Be6 {[%clk 0:02:32]} 25. Nd6
{[%clk 0:01:41]} 25... Red8 {[%clk 0:02:24.4]} 26. Bd3 {[%clk 0:01:19.9]} 26...
Nc5 {[%clk 0:02:19.7]} 27. Ne4 {[%clk 0:01:16]} 27... Nxd3 {[%clk 0:02:18.3]}
28. cxd3 {[%clk 0:01:15.9]} 28... Rab8 {[%clk 0:02:18.8]} 29. Rab1 {[%clk
0:01:14.7]} 29... Ba2 {[%clk 0:02:14.8]} 30. Rbc1 {[%clk 0:01:08.3]} 30... Rb3
{[%clk 0:02:07.6]} 31. Re2 {[%clk 0:00:43.4]} 31... Bb1 {[%clk 0:02:06.3]} 32.
Nc5 {[%clk 0:00:25.8]} 32... Rc3 {[%clk 0:02:02]} 33. Rxb1 {[%clk 0:00:25.2]}
33... Rxc5 {[%clk 0:02:02]} 34. Rb7 {[%clk 0:00:25]} 34... Rc3 {[%clk
0:01:57.4]} 35. Rxa7 {[%clk 0:00:24.4]} 35... Rd6 {[%clk 0:01:48.7]} 36. Ree7
{[%clk 0:00:23.3]} 36... Rf6 {[%clk 0:01:48.4]} 37. Red7 {[%clk 0:00:22.3]}
37... Rxd3 {[%clk 0:01:48.7]} 38. Ra4 {[%clk 0:00:21.9]} 38... Rd1+ {[%clk
0:01:49.1]} 39. Kh2 {[%clk 0:00:21.9]} 39... d3 {[%clk 0:01:41.1]} 40. Rad4
{[%clk 0:00:22.1]} 40... Re6 {[%clk 0:01:22.6]} 41. Rxd3 {[%clk 0:00:21.6]}
41... Ra1 {[%clk 0:01:23.3]} 42. g4 {[%clk 0:00:21.3]} 42... Ra2 {[%clk
0:01:21.9]} 43. Rd2 {[%clk 0:00:19.4]} 43... Rxa3 {[%clk 0:01:20.1]} 44. R7d3
{[%clk 0:00:19.1]} 44... Ra5 {[%clk 0:01:19.3]} 45. Kg3 {[%clk 0:00:19.5]} 45...
Ree5 {[%clk 0:01:17.2]} 46. Rd7 {[%clk 0:00:19.2]} 46... Ra6 {[%clk 0:01:16.9]}
47. R2d6 {[%clk 0:00:18.9]} 47... Ra2 {[%clk 0:01:14.5]} 48. Rd2 {[%clk
0:00:18.7]} 48... Ra1 {[%clk 0:01:15]} 49. Rd1 {[%clk 0:00:18.6]} 49... Ra4
{[%clk 0:01:15.3]} 50. R1d4 {[%clk 0:00:18.4]} 50... Ra3 {[%clk 0:01:09.3]} 51.
Rd3 {[%clk 0:00:18.3]} 51... Ra8 {[%clk 0:01:09.4]} 52. Rd8 {[%clk 0:00:18.1]}
52... Raa5 {[%clk 0:01:09.9]} 53. R8d7 {[%clk 0:00:17.8]} 53... Kg6 {[%clk
0:01:07.2]} 54. R3d6+ {[%clk 0:00:17.4]} 54... Re6 {[%clk 0:01:07.7]} 55. Rxe6+
{[%clk 0:00:17.3]} 55... fxe6 {[%clk 0:01:08.6]} 56. Rb7 {[%clk 0:00:17]} 56...
Ra2 {[%clk 0:01:07.6]} 57. Rb6 {[%clk 0:00:17]} 57... Kf6 {[%clk 0:01:07.9]} 58.
Rb7 {[%clk 0:00:17.2]} 58... Ra1 {[%clk 0:01:07.3]} 59. Rb6 {[%clk 0:00:16.9]}
59... Rh1 {[%clk 0:01:07.2]} 60. Rb7 {[%clk 0:00:17.1]} 60... Ke5 {[%clk
0:01:07.4]} 61. Rb5+ {[%clk 0:00:16.8]} 61... Kd4 {[%clk 0:01:07.5]} 62. Rb4+
{[%clk 0:00:16.9]} 62... Kd5 {[%clk 0:01:08.1]} 63. Rb5+ {[%clk 0:00:16.8]}
63... Kc6 {[%clk 0:01:08.6]} 64. Rb3 {[%clk 0:00:16.2]} 64... e5 {[%clk
0:01:07.8]} 65. Rd3 {[%clk 0:00:16.2]} 65... Kc5 {[%clk 0:01:07.8]} 66. Rd8
{[%clk 0:00:15.8]} 66... Kc4 {[%clk 0:01:06.9]} 67. Kf2 {[%clk 0:00:15.3]} 67...
Kc5 {[%clk 0:01:03.9]} 68. Kg3 {[%clk 0:00:14.4]} 68... Kc6 {[%clk 0:01:04]} 69.
Kf2 {[%clk 0:00:12.6]} 69... Rh4 {[%clk 0:00:58]} 70. Kg1 {[%clk 0:00:09.8]}
70... e4 {[%clk 0:00:57.4]} 71. g3 {[%clk 0:00:09.2]} 71... Rh3 {[%clk
0:00:42.9]} 72. Kg2 {[%clk 0:00:07.7]} 72... exf3+ {[%clk 0:00:42.9]} 73. Kxh3
{[%clk 0:00:07.8]} 1-0

[Event "Early-Titled-Tuesday-Blitz-May-14-2024"]
[Site "Chess.com"]
[Date "2024.05.14"]
[Round "11"]
[White "SirGerhard"]
[Black "subham777"]
[Result "1-0"]
[WhiteElo "2711"]
[BlackElo "2539"]
[TimeControl "180+1"]
[EndTime "10:08:59 PDT"]
[Termination "SirGerhard won by resignation"]

1. d4 {[%clk 0:02:59]} 1... d5 {[%clk 0:02:59.4]} 2. c4 {[%clk 0:02:58.7]} 2...
e6 {[%clk 0:02:59.5]} 3. Nf3 {[%clk 0:02:59.1]} 3... Nf6 {[%clk 0:03:00]} 4. Nc3
{[%clk 0:02:58.9]} 4... Be7 {[%clk 0:03:00.5]} 5. Bf4 {[%clk 0:02:57]} 5... O-O
{[%clk 0:03:00.7]} 6. e3 {[%clk 0:02:56.9]} 6... Ne4 {[%clk 0:03:00.6]} 7. Nxe4
{[%clk 0:02:44.9]} 7... dxe4 {[%clk 0:03:00.6]} 8. Nd2 {[%clk 0:02:45.2]} 8...
f5 {[%clk 0:03:01.1]} 9. f3 {[%clk 0:02:41.1]} 9... g5 {[%clk 0:02:57.7]} 10.
Bg3 {[%clk 0:02:38.6]} 10... f4 {[%clk 0:02:53.5]} 11. Bf2 {[%clk 0:02:38.4]}
11... exf3 {[%clk 0:02:50.7]} 12. Qxf3 {[%clk 0:02:31.3]} 12... c5 {[%clk
0:02:45]} 13. Qe4 {[%clk 0:01:54.7]} 13... cxd4 {[%clk 0:02:39.8]} 14. exd4
{[%clk 0:01:54.5]} 14... e5 {[%clk 0:02:31.7]} 15. dxe5 {[%clk 0:01:45]} 15...
Nc6 {[%clk 0:02:26.9]} 16. c5 {[%clk 0:01:14.4]} 16... Bf5 {[%clk 0:02:19.4]}
17. Qc4+ {[%clk 0:01:14.2]} 17... Kh8 {[%clk 0:02:19.4]} 18. Qc3 {[%clk
0:01:13.9]} 18... Qd5 {[%clk 0:02:07.5]} 19. Bc4 {[%clk 0:01:06.7]} 19... Qxe5+
{[%clk 0:02:03.2]} 20. Qxe5+ {[%clk 0:01:05.4]} 20... Nxe5 {[%clk 0:02:03.4]}
21. Bd4 {[%clk 0:00:52.3]} 21... Bf6 {[%clk 0:02:01.7]} 22. Bxe5 {[%clk
0:00:27.5]} 22... Bxe5 {[%clk 0:02:01.7]} 23. O-O {[%clk 0:00:20.2]} 23... Bxb2
{[%clk 0:01:58.8]} 24. Rad1 {[%clk 0:00:20]} 24... Bd4+ {[%clk 0:01:58.4]} 25.
Kh1 {[%clk 0:00:19.9]} 25... Bxc5 {[%clk 0:01:58.4]} 26. Nf3 {[%clk 0:00:20]}
26... Bg4 {[%clk 0:01:56.4]} 27. Rd5 {[%clk 0:00:18.4]} 27... Bxf3 {[%clk
0:01:46.1]} 28. Rxc5 {[%clk 0:00:12.6]} 28... Bc6 {[%clk 0:01:39.4]} 29. Rxg5
{[%clk 0:00:12.3]} 29... Rad8 {[%clk 0:01:39.1]} 30. h4 {[%clk 0:00:11.3]} 30...
Rd2 {[%clk 0:01:33.1]} 31. Kg1 {[%clk 0:00:09.4]} 31... h6 {[%clk 0:01:20.9]}
32. Rg4 {[%clk 0:00:08.4]} 32... f3 {[%clk 0:01:17]} 33. gxf3 {[%clk 0:00:06.9]}
33... Rxf3 {[%clk 0:01:13.9]} 34. Rxf3 {[%clk 0:00:07]} 34... Bxf3 {[%clk
0:01:14.1]} 35. Rg6 {[%clk 0:00:07.7]} 35... Kh7 {[%clk 0:01:08.5]} 36. Rf6
{[%clk 0:00:08]} 36... Bc6 {[%clk 0:01:02.3]} 37. h5 {[%clk 0:00:07]} 37... Rg2+
{[%clk 0:00:53.8]} 38. Kf1 {[%clk 0:00:06.9]} 38... Rg5 {[%clk 0:00:54.7]} 39.
Rf7+ {[%clk 0:00:07]} 39... Rg7 {[%clk 0:00:48.9]} 40. Rf8 {[%clk 0:00:07.2]}
40... Rc7 {[%clk 0:00:43]} 41. Kf2 {[%clk 0:00:05.4]} 41... a5 {[%clk
0:00:32.9]} 42. Be6 {[%clk 0:00:05.1]} 42... Re7 {[%clk 0:00:24.7]} 43. Rf6
{[%clk 0:00:04.2]} 43... Bd7 {[%clk 0:00:19.4]} 44. Bxd7 {[%clk 0:00:03.9]}
44... Rxd7 {[%clk 0:00:19.6]} 45. a4 {[%clk 0:00:04.8]} 45... Kg7 {[%clk
0:00:16.6]} 46. Rg6+ {[%clk 0:00:04.9]} 46... Kh7 {[%clk 0:00:16.8]} 47. Rb6
{[%clk 0:00:05]} 47... Re7 {[%clk 0:00:09]} 48. Kf3 {[%clk 0:00:04.7]} 48... Kg7
{[%clk 0:00:07.5]} 49. Kf4 {[%clk 0:00:04.8]} 49... Rc7 {[%clk 0:00:05.2]} 50.
Rg6+ {[%clk 0:00:04.2]} 50... Kh7 {[%clk 0:00:05.2]} 51. Rb6 {[%clk 0:00:05]}
51... Rc4+ {[%clk 0:00:04.4]} 52. Kf5 {[%clk 0:00:04.8]} 52... Rc5+ {[%clk
0:00:03.1]} 53. Kf6 {[%clk 0:00:04.4]} 53... Rc6+ {[%clk 0:00:02.3]} 54. Rxc6
{[%clk 0:00:03.8]} 54... bxc6 {[%clk 0:00:03.2]} 55. Ke5 {[%clk 0:00:03.8]}
55... Kg7 {[%clk 0:00:04.1]} 56. Kd6 {[%clk 0:00:04.2]} 56... Kf6 {[%clk
0:00:04.8]} 57. Kxc6 {[%clk 0:00:04.7]} 57... Kg5 {[%clk 0:00:05.5]} 58. Kb5
{[%clk 0:00:05.4]} 58... Kxh5 {[%clk 0:00:06.2]} 59. Kxa5 {[%clk 0:00:06]} 59...
Kg4 {[%clk 0:00:06.3]} 60. Kb6 {[%clk 0:00:03.7]} 60... h5 {[%clk 0:00:07]} 61.
a5 {[%clk 0:00:04.6]} 61... h4 {[%clk 0:00:07.7]} 62. a6 {[%clk 0:00:05.5]}
62... h3 {[%clk 0:00:08.4]} 63. a7 {[%clk 0:00:06.3]} 63... Kg3 {[%clk
0:00:08.5]} 64. a8=Q {[%clk 0:00:06.7]} 64... Kh2 {[%clk 0:00:09.2]} 65. Qb8+
{[%clk 0:00:06.3]} 65... Kg1 {[%clk 0:00:09.2]} 66. Qg3+ {[%clk 0:00:06.1]} 1-0

[Event "Early-Titled-Tuesday-Blitz-May-14-2024"]
[Site "Chess.com"]
[Date "2024.05.14"]
[Round "11"]
[White "Semetey"]
[Black "MdChess1734"]
[Result "0-1"]
[WhiteElo "2571"]
[BlackElo "2428"]
[TimeControl "180+1"]
[EndTime "10:09:00 PDT"]
[Termination "MdChess1734 won by checkmate"]

1. Nc3 {[%clk 0:02:51.7]} 1... d5 {[%clk 0:02:57.4]} 2. d4 {[%clk 0:02:51.7]}
2... Nf6 {[%clk 0:02:56.9]} 3. Bf4 {[%clk 0:02:51.6]} 3... Bf5 {[%clk
0:02:56.8]} 4. e3 {[%clk 0:02:51.6]} 4... e6 {[%clk 0:02:57.1]} 5. Nb5 {[%clk
0:02:50.9]} 5... Na6 {[%clk 0:02:56.1]} 6. a3 {[%clk 0:02:46.2]} 6... c6 {[%clk
0:02:54.8]} 7. Nc3 {[%clk 0:02:45.8]} 7... Nc7 {[%clk 0:02:51.9]} 8. Nf3 {[%clk
0:02:46.1]} 8... Bd6 {[%clk 0:02:51.4]} 9. Ne5 {[%clk 0:02:46.2]} 9... O-O
{[%clk 0:02:35.3]} 10. h3 {[%clk 0:02:38.6]} 10... c5 {[%clk 0:02:33.8]} 11. g4
{[%clk 0:02:37.8]} 11... Bg6 {[%clk 0:02:32.3]} 12. h4 {[%clk 0:02:37.7]} 12...
cxd4 {[%clk 0:02:22.1]} 13. exd4 {[%clk 0:02:30.1]} 13... h5 {[%clk 0:02:19.4]}
14. g5 {[%clk 0:02:20.3]} 14... Ng4 {[%clk 0:02:17.6]} 15. f3 {[%clk 0:02:12.8]}
15... Nxe5 {[%clk 0:02:15.4]} 16. dxe5 {[%clk 0:02:13.7]} 16... Bc5 {[%clk
0:02:15.3]} 17. Bd3 {[%clk 0:02:14.2]} 17... b5 {[%clk 0:02:12.9]} 18. Qd2
{[%clk 0:01:53.9]} 18... b4 {[%clk 0:02:08]} 19. axb4 {[%clk 0:01:53.7]} 19...
Bxb4 {[%clk 0:02:08.3]} 20. O-O-O {[%clk 0:01:41.1]} 20... d4 {[%clk 0:02:00.9]}
21. Bxg6 {[%clk 0:01:40.9]} 21... dxc3 {[%clk 0:01:59.5]} 22. Qxd8 {[%clk
0:01:40.8]} 22... cxb2+ {[%clk 0:01:57.6]} 23. Kxb2 {[%clk 0:01:40.8]} 23...
Rfxd8 {[%clk 0:01:57.4]} 24. Be4 {[%clk 0:01:39.5]} 24... Rab8 {[%clk
0:01:55.7]} 25. Rxd8+ {[%clk 0:01:38]} 25... Rxd8 {[%clk 0:01:56.1]} 26. g6
{[%clk 0:01:38.5]} 26... Bc5 {[%clk 0:01:53]} 27. c3 {[%clk 0:01:31]} 27... Nd5
{[%clk 0:01:48.4]} 28. gxf7+ {[%clk 0:01:28.2]} 28... Kxf7 {[%clk 0:01:47.8]}
29. Bg5 {[%clk 0:01:28.9]} 29... Rb8+ {[%clk 0:01:47.1]} 30. Kc2 {[%clk
0:01:28]} 30... Rc8 {[%clk 0:01:19.5]} 31. Rb1 {[%clk 0:01:05]} 31... Bb6 {[%clk
0:00:45.9]} 32. Bxd5 {[%clk 0:01:01.8]} 32... exd5 {[%clk 0:00:46]} 33. Kd3
{[%clk 0:01:02.5]} 33... Ke6 {[%clk 0:00:46.4]} 34. f4 {[%clk 0:01:02.3]} 34...
Rc4 {[%clk 0:00:37.9]} 35. Rf1 {[%clk 0:00:57.1]} 35... g6 {[%clk 0:00:37.4]}
36. Rf3 {[%clk 0:00:56.7]} 36... Ba5 {[%clk 0:00:33.7]} 37. Kc2 {[%clk
0:00:50.6]} 37... d4 {[%clk 0:00:33.7]} 38. Kb3 {[%clk 0:00:50.5]} 38... Rxc3+
{[%clk 0:00:32.7]} 39. Rxc3 {[%clk 0:00:50.5]} 39... Bxc3 {[%clk 0:00:32.3]} 40.
Kc4 {[%clk 0:00:50.6]} 40... a5 {[%clk 0:00:32.3]} 41. Bh6 {[%clk 0:00:45.3]}
41... a4 {[%clk 0:00:27]} 42. Bf8 {[%clk 0:00:44.3]} 42... Kf5 {[%clk
0:00:26.6]} 43. Ba3 {[%clk 0:00:39.4]} 43... Ba1 {[%clk 0:00:21.9]} 44. Kd3
{[%clk 0:00:39]} 44... Bc3 {[%clk 0:00:16.6]} 45. Bc5 {[%clk 0:00:38.9]} 45...
Be1 {[%clk 0:00:14.1]} 46. Bxd4 {[%clk 0:00:37.6]} 46... Bxh4 {[%clk 0:00:14.2]}
47. Ke3 {[%clk 0:00:30.4]} 47... Bg3 {[%clk 0:00:12.4]} 48. Kf3 {[%clk
0:00:29.9]} 48... Bxf4 {[%clk 0:00:12.6]} 49. e6 {[%clk 0:00:30.4]} 49... Bd6
{[%clk 0:00:12.7]} 50. e7 {[%clk 0:00:28.6]} 50... Bxe7 {[%clk 0:00:12.7]} 51.
Ba1 {[%clk 0:00:28.9]} 51... g5 {[%clk 0:00:13.3]} 52. Kg3 {[%clk 0:00:28.7]}
52... Bd6+ {[%clk 0:00:13.4]} 53. Kf3 {[%clk 0:00:29]} 53... g4+ {[%clk
0:00:13.6]} 54. Kg2 {[%clk 0:00:29.4]} 54... h4 {[%clk 0:00:13.7]} 55. Kf2
{[%clk 0:00:29.8]} 55... h3 {[%clk 0:00:13.7]} 56. Kg1 {[%clk 0:00:29.7]} 56...
g3 {[%clk 0:00:13.9]} 57. Kh1 {[%clk 0:00:29.9]} 57... g2+ {[%clk 0:00:13.2]}
58. Kg1 {[%clk 0:00:30.3]} 58... Bc5+ {[%clk 0:00:13.9]} 59. Kh2 {[%clk
0:00:30.7]} 59... g1=Q+ {[%clk 0:00:13.9]} 60. Kxh3 {[%clk 0:00:31.6]} 60...
Qg4+ {[%clk 0:00:13.4]} 61. Kh2 {[%clk 0:00:31.6]} 61... Bd6+ {[%clk 0:00:13.8]}
62. Kh1 {[%clk 0:00:31.9]} 62... Qf3+ {[%clk 0:00:14.2]} 63. Kg1 {[%clk
0:00:32]} 63... Bc5+ {[%clk 0:00:14]} 64. Kh2 {[%clk 0:00:30.2]} 64... Kg4
{[%clk 0:00:14.5]} 65. Be5 {[%clk 0:00:28.9]} 65... Qh3# {[%clk 0:00:14.4]} 0-1

[Event "Early-Titled-Tuesday-Blitz-May-14-2024"]
[Site "Chess.com"]
[Date "2024.05.14"]
[Round "11"]
[White "Lucky_Puncher"]
[Black "Let_it_be_1"]
[Result "1-0"]
[WhiteElo "2574"]
[BlackElo "2624"]
[TimeControl "180+1"]
[EndTime "10:09:06 PDT"]
[Termination "Lucky_Puncher won on time"]

1. d4 {[%clk 0:03:00.9]} 1... d5 {[%clk 0:02:59.8]} 2. c4 {[%clk 0:03:00.9]}
2... e6 {[%clk 0:02:59.8]} 3. Nc3 {[%clk 0:03:00.9]} 3... Be7 {[%clk 0:02:59.3]}
4. Nf3 {[%clk 0:03:00.5]} 4... Nf6 {[%clk 0:02:59.2]} 5. Bg5 {[%clk 0:03:00.3]}
5... Nbd7 {[%clk 0:02:58.8]} 6. e3 {[%clk 0:03:00.2]} 6... O-O {[%clk
0:02:58.5]} 7. Rc1 {[%clk 0:02:58.9]} 7... a6 {[%clk 0:02:58.4]} 8. a4 {[%clk
0:02:55.4]} 8... c5 {[%clk 0:02:48.3]} 9. cxd5 {[%clk 0:02:54.1]} 9... exd5
{[%clk 0:02:46.7]} 10. Bd3 {[%clk 0:02:54.2]} 10... b6 {[%clk 0:02:45.6]} 11.
O-O {[%clk 0:02:53.4]} 11... Bb7 {[%clk 0:02:45.5]} 12. Qc2 {[%clk 0:02:52.2]}
12... Rc8 {[%clk 0:02:41.1]} 13. Rfd1 {[%clk 0:02:51.7]} 13... Ne4 {[%clk
0:02:35]} 14. Bf4 {[%clk 0:02:25.2]} 14... Ndf6 {[%clk 0:02:16.1]} 15. Qe2
{[%clk 0:02:11.1]} 15... c4 {[%clk 0:02:04.5]} 16. Bc2 {[%clk 0:02:06.4]} 16...
Nxc3 {[%clk 0:01:52.3]} 17. bxc3 {[%clk 0:02:07.3]} 17... Ne4 {[%clk 0:01:52.4]}
18. Bxe4 {[%clk 0:02:01.6]} 18... dxe4 {[%clk 0:01:52.3]} 19. Nd2 {[%clk
0:02:02.3]} 19... Qd5 {[%clk 0:01:43.8]} 20. Rb1 {[%clk 0:01:54.5]} 20... b5
{[%clk 0:01:44.1]} 21. axb5 {[%clk 0:01:54.6]} 21... axb5 {[%clk 0:01:44.3]} 22.
Rdc1 {[%clk 0:01:52]} 22... Ra8 {[%clk 0:01:32.8]} 23. Rc2 {[%clk 0:01:50.1]}
23... Rfc8 {[%clk 0:01:29.8]} 24. f3 {[%clk 0:01:39.7]} 24... exf3 {[%clk
0:01:25.2]} 25. gxf3 {[%clk 0:01:40.6]} 25... Qf5 {[%clk 0:01:14.6]} 26. Rcb2
{[%clk 0:01:34.6]} 26... Bc6 {[%clk 0:01:12.9]} 27. Bg3 {[%clk 0:01:32.7]} 27...
Qg6 {[%clk 0:00:51.7]} 28. e4 {[%clk 0:01:28.1]} 28... b4 {[%clk 0:00:46.9]} 29.
Rc1 {[%clk 0:01:03.9]} 29... h5 {[%clk 0:00:39.2]} 30. Kh1 {[%clk 0:00:59.5]}
30... h4 {[%clk 0:00:25.2]} 31. Bf2 {[%clk 0:00:53.4]} 31... Bb5 {[%clk
0:00:21.2]} 32. d5 {[%clk 0:00:44.9]} 32... b3 {[%clk 0:00:20.5]} 33. Bd4 {[%clk
0:00:35.5]} 33... f6 {[%clk 0:00:17.3]} 34. Rg1 {[%clk 0:00:34.3]} 34... Qh5
{[%clk 0:00:16]} 35. Qg2 {[%clk 0:00:33.6]} 35... g5 {[%clk 0:00:14.3]} 36. f4
{[%clk 0:00:31.2]} 36... Ra2 {[%clk 0:00:13]} 37. fxg5 {[%clk 0:00:27.8]} 37...
fxg5 {[%clk 0:00:12.9]} 38. Qh3 {[%clk 0:00:25.7]} 38... Rf8 {[%clk 0:00:10.7]}
39. Qe6+ {[%clk 0:00:23.1]} 39... Rf7 {[%clk 0:00:11.1]} 40. Rxa2 {[%clk
0:00:19]} 40... bxa2 {[%clk 0:00:11.4]} 41. Qc8+ {[%clk 0:00:17.5]} 41... Bf8
{[%clk 0:00:10.3]} 42. Qe6 {[%clk 0:00:13.3]} 42... Bd7 {[%clk 0:00:09.9]} 43.
Qe5 {[%clk 0:00:13]} 43... Bg7 {[%clk 0:00:10.1]} 44. Qb8+ {[%clk 0:00:13]}
44... Kh7 {[%clk 0:00:09.9]} 45. e5 {[%clk 0:00:08.7]} 45... Bg4 {[%clk
0:00:08.5]} 46. Re1 {[%clk 0:00:05.4]} 46... Bf3+ {[%clk 0:00:08.4]} 47. Nxf3
{[%clk 0:00:05.4]} 47... Qxf3+ {[%clk 0:00:08.5]} 48. Kg1 {[%clk 0:00:06]} 48...
Qg4+ {[%clk 0:00:08.2]} 49. Kh1 {[%clk 0:00:06.6]} 49... Qf3+ {[%clk 0:00:07.7]}
50. Kg1 {[%clk 0:00:06.5]} 50... h3 {[%clk 0:00:08.1]} 51. Qb2 {[%clk
0:00:06.3]} 51... a1=Q {[%clk 0:00:05.8]} 52. Rxa1 {[%clk 0:00:05.6]} 52... g4
{[%clk 0:00:05.3]} 53. Qc2+ {[%clk 0:00:05.6]} 53... Kg8 {[%clk 0:00:04.6]} 54.
Re1 {[%clk 0:00:05.9]} 54... Bh6 {[%clk 0:00:04.3]} 55. Qe2 {[%clk 0:00:04.5]}
55... Qf5 {[%clk 0:00:03.1]} 56. e6 {[%clk 0:00:04.6]} 56... Re7 {[%clk
0:00:02.6]} 57. Rf1 {[%clk 0:00:04.9]} 57... Qd3 {[%clk 0:00:01.8]} 58. Qxg4+
{[%clk 0:00:05]} 58... Kh7 {[%clk 0:00:00.9]} 59. Qf5+ {[%clk 0:00:04.5]} 59...
Qxf5 {[%clk 0:00:00.3]} 60. Rxf5 {[%clk 0:00:05.4]} 1-0

[Event "Early-Titled-Tuesday-Blitz-May-14-2024"]
[Site "Chess.com"]
[Date "2024.05.14"]
[Round "11"]
[White "BardArtem"]
[Black "biveklama"]
[Result "0-1"]
[WhiteElo "2748"]
[BlackElo "2600"]
[TimeControl "180+1"]
[EndTime "10:09:07 PDT"]
[Termination "biveklama won by resignation"]

1. b3 {[%clk 0:03:00.9]} 1... d5 {[%clk 0:02:56.7]} 2. Bb2 {[%clk 0:03:00.7]}
2... Nf6 {[%clk 0:02:56.4]} 3. Nf3 {[%clk 0:03:00.1]} 3... Bg4 {[%clk 0:02:47]}
4. Ne5 {[%clk 0:02:58.8]} 4... Bf5 {[%clk 0:02:46.3]} 5. e3 {[%clk 0:02:58.1]}
5... e6 {[%clk 0:02:46.1]} 6. g4 {[%clk 0:02:55.1]} 6... Be4 {[%clk 0:02:45.1]}
7. f3 {[%clk 0:02:55.2]} 7... Bg6 {[%clk 0:02:39.7]} 8. h4 {[%clk 0:02:54.1]}
8... h5 {[%clk 0:02:34]} 9. Nxg6 {[%clk 0:02:46.3]} 9... fxg6 {[%clk 0:02:34.9]}
10. g5 {[%clk 0:02:46.7]} 10... Ng8 {[%clk 0:02:24.5]} 11. f4 {[%clk 0:02:44.5]}
11... Kf7 {[%clk 0:02:03.1]} 12. d3 {[%clk 0:02:38.5]} 12... Bb4+ {[%clk
0:02:02.2]} 13. Kf2 {[%clk 0:02:34.6]} 13... Ne7 {[%clk 0:02:01.3]} 14. a3
{[%clk 0:02:34.5]} 14... Bd6 {[%clk 0:02:00.9]} 15. Nd2 {[%clk 0:02:34.4]} 15...
Rf8 {[%clk 0:01:58.6]} 16. Bh3 {[%clk 0:02:33.7]} 16... Nbc6 {[%clk 0:01:50.4]}
17. Kg2 {[%clk 0:02:28.2]} 17... Nf5 {[%clk 0:01:47.3]} 18. Bxf5 {[%clk
0:02:28.2]} 18... exf5 {[%clk 0:01:44.9]} 19. Qf3 {[%clk 0:02:25.3]} 19... Ne7
{[%clk 0:01:42.4]} 20. Rhe1 {[%clk 0:02:10.6]} 20... Kg8 {[%clk 0:01:39.7]} 21.
c4 {[%clk 0:02:04.6]} 21... c6 {[%clk 0:01:39.5]} 22. b4 {[%clk 0:02:03.2]}
22... Qd7 {[%clk 0:01:37.5]} 23. c5 {[%clk 0:01:54.4]} 23... Bc7 {[%clk
0:01:36.9]} 24. Nb3 {[%clk 0:01:54.8]} 24... a6 {[%clk 0:01:33]} 25. Rad1 {[%clk
0:01:36.8]} 25... Kh7 {[%clk 0:01:22.4]} 26. Nd4 {[%clk 0:01:18.4]} 26... Rae8
{[%clk 0:01:20.8]} 27. Qf2 {[%clk 0:01:17.1]} 27... Nc8 {[%clk 0:01:17.5]} 28.
Nf3 {[%clk 0:01:17.3]} 28... Na7 {[%clk 0:01:14.6]} 29. Be5 {[%clk 0:01:14.6]}
29... Bd8 {[%clk 0:01:09.6]} 30. Qb2 {[%clk 0:01:14]} 30... Nb5 {[%clk
0:01:02.6]} 31. a4 {[%clk 0:01:12.3]} 31... Nc7 {[%clk 0:01:02.5]} 32. Rb1
{[%clk 0:01:02.5]} 32... Re6 {[%clk 0:00:55.6]} 33. Nd4 {[%clk 0:00:53.9]} 33...
Ree8 {[%clk 0:00:54.6]} 34. b5 {[%clk 0:00:54]} 34... axb5 {[%clk 0:00:52]} 35.
axb5 {[%clk 0:00:54.9]} 35... Rxe5 {[%clk 0:00:41]} 36. fxe5 {[%clk 0:00:53.9]}
36... f4 {[%clk 0:00:40.4]} 37. Kh1 {[%clk 0:00:41.8]} 37... f3 {[%clk 0:00:30]}
38. e6 {[%clk 0:00:20.1]} 38... Nxe6 {[%clk 0:00:29.7]} 39. bxc6 {[%clk
0:00:20.4]} 39... bxc6 {[%clk 0:00:26.5]} 40. Qb7 {[%clk 0:00:20.8]} 40... Nc7
{[%clk 0:00:20.5]} 41. Kh2 {[%clk 0:00:10]} 41... Qg4 {[%clk 0:00:17.7]} 42. Qb2
{[%clk 0:00:03]} 42... Qxh4+ {[%clk 0:00:16.7]} 43. Kg1 {[%clk 0:00:03.9]} 43...
f2+ {[%clk 0:00:17.2]} 44. Kg2 {[%clk 0:00:02]} 44... Qxg5+ {[%clk 0:00:17.6]}
45. Kf1 {[%clk 0:00:02]} 45... fxe1=Q+ {[%clk 0:00:17.5]} 46. Kxe1 {[%clk
0:00:02.9]} 46... Qg1+ {[%clk 0:00:17.8]} 47. Kd2 {[%clk 0:00:03.6]} 47... Rf2+
{[%clk 0:00:12]} 48. Kc3 {[%clk 0:00:04]} 48... Qg3 {[%clk 0:00:09.9]} 49. Qb8
{[%clk 0:00:03.2]} 49... Nb5+ {[%clk 0:00:07.1]} 50. Nxb5 {[%clk 0:00:03.2]}
50... Qxb8 {[%clk 0:00:07.1]} 51. Na3 {[%clk 0:00:00.8]} 51... Qe5+ {[%clk
0:00:06.9]} 52. Kb3 {[%clk 0:00:01.7]} 52... Qxe3 {[%clk 0:00:07.3]} 53. Ka4
{[%clk 0:00:02]} 53... Qxc5 {[%clk 0:00:07.7]} 54. Rb4 {[%clk 0:00:01.3]} 54...
Ra2 {[%clk 0:00:08.2]} 55. Kb3 {[%clk 0:00:01.8]} 55... Rxa3+ {[%clk 0:00:08.8]}
56. Kxa3 {[%clk 0:00:02.7]} 56... Be7 {[%clk 0:00:08.9]} 57. d4 {[%clk
0:00:02.6]} 57... Qxb4+ {[%clk 0:00:09.8]} 58. Ka2 {[%clk 0:00:03.4]} 58... Qxd4
{[%clk 0:00:10.6]} 59. Kb3 {[%clk 0:00:02.4]} 59... Qe4 {[%clk 0:00:11.5]} 60.
Kc3 {[%clk 0:00:02.4]} 60... h4 {[%clk 0:00:12.4]} 61. Kd2 {[%clk 0:00:03.3]}
61... h3 {[%clk 0:00:13]} 62. Kc3 {[%clk 0:00:03.5]} 62... h2 {[%clk 0:00:13.9]}
63. Kd2 {[%clk 0:00:04.4]} 63... g5 {[%clk 0:00:14.7]} 64. Kc3 {[%clk
0:00:05.3]} 64... g4 {[%clk 0:00:15.6]} 65. Kd2 {[%clk 0:00:06.2]} 65... g3
{[%clk 0:00:16.5]} 66. Kc3 {[%clk 0:00:07.1]} 66... g2 {[%clk 0:00:17.4]} 67.
Kd2 {[%clk 0:00:08]} 67... g6 {[%clk 0:00:18.2]} 68. Kc3 {[%clk 0:00:08.9]} 0-1